[Event "Vienna Championship 2022"]
[Site "Vienna"]
[Date "2022.09.23"]
[Round "7.1"]
[White "Atzl, Florian"]
[Black "Schwabeneder, Florian"]
[Result "0-1"]
[ECO "B15"]
[WhiteElo "2155"]
[BlackElo "2417"]
[Annotator "TA"]
[PlyCount "118"]
[EventDate "2022.09.17"]
[EventType "tourn"]
[EventCountry "AUT"]
[SourceTitle "playchess.com"]
[Source "ChessBase"]
[SourceQuality "1"]
[TimeControl "5400+30"]

{[%evp 15,118,14,31,19,12,12,33,35,32,20,17,12,12,10,12,13,18,0,0,0,0,0,16,0,0,0,0,0,6,0,0,0,0,0,0,0,0,0,0,0,0,0,15,0,4,8,8,0,79,83,107,102,448,114,124,0,168,160,139,142,134,0,0,0,0,0,0,0,0,0,0,-19,0,0,0,0,0,-8,-14,-219,-212,-210,-237,-227,-226,-301,-301,-499,-414,-526,-528,-504,-499,-693,-597,-813,-780,-2365,-2393,-2201,-2062,-1967,-1966,-29997,-29998]} 1. e4 {[%emt 0:00:07]} c6 {[%emt 0:00:26]} 2. d4 {[%emt 0:00:34]} d5 {[%emt 0:00:08]} 3. Nd2 {[%emt 0:00:15]} dxe4 {[%emt 0:00:25]} 4. Nxe4 {[%emt 0:00:05]} Nf6 {[%emt 0:00:11]} 5. Nxf6+ {[%emt 0:00:39]} exf6 {[%emt 0:00:08]} 6. c3 {[%emt 0:01:23]} Bd6 {[%emt 0:00:08]} 7. Bd3 {[%emt 0:01:04]} O-O {[%emt 0:00:10]} 8. Ne2 {[%emt 0:02:35]} Re8 {[%emt 0:00:23]} 9. O-O {[%emt 0:00:48] B15: Caro-Kann: 3 Nc3: 3...g6 and 3...dxe4 4 Nxe4 Nf6 5 Nxf6+ exf6.} Nd7 {[%emt 0:00:56]} 10. Bf4 {[%emt 0:06:44] 10.Bf4 is better than 10.Ng3.} Qc7 {[%emt 0:01:29]} 11. Bxd6 {[%emt 0:04:54] White is slightly better.} Qxd6 {[%emt 0:00:08]} 12. Ng3 {[%emt 0:00:49] [#]} g6 $146 {[%emt 0:04:18]} ({Predecessor:} 12... Nf8 13. Qf3 Be6 14. Ne4 Qc7 15. Rfe1 Rad8 16. Re3 b6 17. Rae1 Ng6 18. b4 h6 19. Nxf6+ {1-0 (19) Felgaer,R (2471)-Bauza,A (2290) Mar del Plata 2001}) 13. Re1 {[%emt 0:03:40]} Rxe1+ {[%emt 0:08:36]} 14. Qxe1 {[%emt 0:00:12]} f5 {[%emt 0:00:46]} 15. Qe8+ {[%emt 0:08:24]} Qf8 {[%emt 0:00:08]} 16. Re1 {[%emt 0:04:44]} Nb6 {[%emt 0:01:10]} 17. c4 {[%emt 0:13:36]} Be6 {[%emt 0:01:40]} 18. Qxf8+ {[%emt 0:00:04]} Kxf8 {[%emt 0:00:07]} 19. b3 {[%emt 0:00:40]} a5 {[%emt 0:02:56]} 20. a4 {[%emt 0:06:52]} Rd8 {[%emt 0:02:58]} 21. Ne2 {[%emt 0:02:05]} Na8 {[%emt 0:02:43]} 22. f3 {[%emt 0:05:48]} Nc7 {[%emt 0:01:05]} 23. Rd1 {[%emt 0:03:05]} Kg7 {[%emt 0:03:48]} 24. Kf2 {[%emt 0:00:28]} Bc8 {[%emt 0:06:24]} 25. Bb1 {[%emt 0:02:54]} Ne6 {[%emt 0:02:00]} 26. Rd2 {[%emt 0:03:27]} f4 {[%emt 0:03:39]} 27. Ke1 {[%emt 0:01:50]} g5 {[%emt 0:00:22]} 28. Bf5 {[%emt 0:03:31]} Kf6 {[%emt 0:05:12]} 29. Bh3 {[%emt 0:01:19]} Ng7 {[%emt 0:02:31]} 30. Bxc8 {[%emt 0:00:32]} Rxc8 $11 {[%emt 0:00:07][%mdl 4096] Endgame KRN-KRN} 31. Nc3 {[%emt 0:00:28]} Nf5 {[%emt 0:00:51]} (31... Ne6 $11) 32. Ne4+ $16 {[%emt 0:00:11]} Kg6 {[%emt 0:00:24]} 33. d5 $1 {[%emt 0:02:46]} Re8 $2 {[%emt 0:03:28][%mdl 8192]} (33... Rc7 $16) 34. Kf2 $2 {[%emt 0:00:58]} (34. d6 $18 {and the rest is easy.}) 34... Rd8 {[%emt 0:00:37] [#]} 35. d6 {[%emt 0:02:42]} (35. dxc6 $1 $16 Rxd2+ 36. Nxd2 bxc6 37. Ke2) 35... c5 $2 {[%emt 0:00:13]} (35... Ng7 $1 $11 {and Black has nothing to worry.}) 36. Rd5 $18 {[%emt 0:01:02]} ({Resist} 36. Nxc5 $6 Rxd6 37. Ke2 Nd4+ 38. Rxd4 Rxd4 $16) 36... b6 {[%emt 0:00:15]} 37. d7 {[%emt 0:04:16]} h6 {[%emt 0:02:35]} 38. Nc3 {[%emt 0:04:08]} (38. g3 $16) 38... Kf6 $11 {[%emt 0:01:08]} 39. Nb5 {[%emt 0:00:56]} Ne3 {[%emt 0:01:28]} 40. Rd6+ {[%emt 0:02:12]} Ke7 {[%emt 0:00:07]} 41. Rxb6 {[%emt 0:00:50]} Rxd7 {[%emt 0:00:07] aiming for ...Rd2+.} 42. Ke2 {[%emt 0:00:39] Inhibits Rd2+.} Nxg2 {[%emt 0:01:14]} 43. Rc6 {[%emt 0:01:12]} Kf8 {[%emt 0:04:14] Strongly threatening ...Re7+.} 44. Rxc5 {[%emt 0:00:47]} Re7+ {[%emt 0:00:06]} 45. Kf2 {[%emt 0:01:29]} Ne1 {[%emt 0:01:17]} 46. Rc8+ {[%emt 0:00:07]} Kg7 {[%emt 0:00:12]} 47. Nd6 $2 {[%emt 0:01:05]} (47. Rd8 $11 {and White stays safe.} Re3 48. Nd4 Nd3+ 49. Kg2) 47... Nd3+ $19 {[%emt 0:00:22]} 48. Kf1 {[%emt 0:01:09]} Re1+ {[%emt 0:00:22]} 49. Kg2 {[%emt 0:00:02] [#]} Re2+ $1 {[%emt 0:00:16]} 50. Kg1 {[%emt 0:01:03]} Ne5 {[%emt 0:00:59]} 51. c5 $2 {[%emt 0:03:06]} (51. h3 Nxf3+ 52. Kf1) 51... Rc2 {[%emt 0:01:28]} 52. Rc7 {[%emt 0:01:02]} Nxf3+ {[%emt 0:00:46]} 53. Kf1 {[%emt 0:00:01]} Ne5 {[%emt 0:02:11] ...f3 is the strong threat.} 54. Nf5+ {[%emt 0:01:09]} Kg6 {[%emt 0:00:24]} 55. Ne7+ {[%emt 0:00:22]} Kf6 {[%emt 0:00:49] Threatens to win with ...f3.} 56. c6 {[%emt 0:01:00]} f3 {[%emt 0:00:33]} 57. Nd5+ {[%emt 0:00:11]} Ke6 {[%emt 0:00:16]} 58. Ne3 {[%emt 0:00:58]} Re2 {[%emt 0:00:41] ( -> ...Nd3)} 59. Nc4 {[%emt 0:00:30]} Nd3 {[%emt 0:00:18] What a bad dream for White.  Weighted Error Value: White=0.62/Black=0.21 (precise)} 0-1

[Event "Vienna Championship 2022"]
[Site "Vienna"]
[Date "2022.09.23"]
[Round "7.2"]
[White "Stanec, Nikolaus"]
[Black "Steindl, Johannes"]
[Result "1-0"]
[ECO "C78"]
[WhiteElo "2458"]
[BlackElo "2327"]
[Annotator "TA"]
[PlyCount "117"]
[EventDate "2022.09.17"]
[EventType "tourn"]
[EventCountry "AUT"]
[SourceTitle "playchess.com"]
[Source "ChessBase"]
[SourceQuality "1"]
[TimeControl "5400+30"]

{[%evp 16,117,40,0,5,15,14,0,16,2,36,40,30,39,28,23,56,10,14,20,35,12,12,12,12,12,17,19,16,0,0,0,16,16,16,16,10,0,0,0,5314,5302,5173,1225,1225,1183,5265,0,87,81,79,81,83,76,126,126,126,126,126,126,106,106,280,269,248,179,244,210,254,254,254,8,21,21,26,0,0,0,0,0,707,666,608,502,1795,287,4118,4133,3549,3666,79,79,1625,1501,1004,396,1582,1501,4133,588,4133,2484,1394,1306]} 1. e4 {[%emt 0:00:03]} e5 {[%emt 0:03:21]} 2. Nf3 {[%emt 0:00:06]} Nc6 {[%emt 0:00:02]} 3. Bb5 {[%emt 0:00:07]} a6 {[%emt 0:00:23]} 4. Ba4 {[%emt 0:00:05]} Nf6 {[%emt 0:00:05]} 5. O-O {[%emt 0:00:19]} b5 {[%emt 0:00:10]} 6. Bb3 {[%emt 0:00:05]} Bc5 {[%emt 0:00:04]} 7. c3 {[%emt 0:01:29]} d6 {[%emt 0:00:04]} 8. d4 {[%emt 0:00:50]} Bb6 {[%emt 0:00:04]} 9. Be3 $1 {[%emt 0:00:22][%mdl 4] is more profitable than 9.a4 at the moment.} (9. a4 $5 {[%cal Ra4b5]}) 9... O-O {[%emt 0:00:30] C78: Ruy Lopez: Archangelsk and Möller Defences.} 10. Nbd2 {[%emt 0:00:53]} Re8 {[%emt 0:01:36]} 11. Re1 {[%emt 0:06:47]} h6 {[%emt 0:02:17] [#] The position is equal.} 12. dxe5 $146 {[%emt 0:03:01]} ({Predecessor:} 12. h3 exd4 13. cxd4 Na5 14. Bc2 Bb7 15. Qb1 Nc4 16. Nxc4 bxc4 17. d5 c6 18. Ba4 {½-½ (33) Kubicki,T (2428)-Sutkus,V (2437) ICCF email 2017}) 12... Bxe3 {[%emt 0:00:39]} 13. exf6 {[%emt 0:02:52]} Bxd2 {[%emt 0:01:05]} 14. Qxd2 {[%emt 0:00:08] aiming for Qd5.} Qxf6 {[%emt 0:01:22]} 15. Bd5 {[%emt 0:03:34]} Bb7 {[%emt 0:04:17]} 16. a4 {[%emt 0:01:43]} (16. Nd4 $14 Na5 17. Bxb7 Nxb7 18. b4) 16... Rab8 $11 {[%emt 0:01:14]} 17. axb5 {[%emt 0:00:23]} axb5 {[%emt 0:00:04][%cal Ob5b4]} 18. h3 {[%emt 0:01:56]} Ne5 {[%emt 0:01:17]} 19. Nxe5 {[%emt 0:01:34]} Qxe5 {[%emt 0:00:25]} 20. Re3 {[%emt 0:07:24]} Qg5 {[%emt 0:03:02]} 21. Ra7 {[%emt 0:04:20]} Bxd5 {[%emt 0:05:53]} 22. Qxd5 {[%emt 0:02:09]} Re5 {[%emt 0:00:24]} 23. Qd4 {[%emt 0:04:44]} Rc5 {[%emt 0:06:32]} 24. Rg3 {[%emt 0:08:17]} Qe5 {[%emt 0:00:54]} 25. Qxe5 {[%emt 0:01:03]} dxe5 {[%emt 0:00:10][%mdl 4096] Endgame KRR-KRR} ({Don't take} 25... Rxe5 26. Rxc7 Rxe4 27. Rf3 $16) 26. Rd3 {[%emt 0:00:32]} b4 {[%emt 0:00:42]} 27. cxb4 {[%emt 0:07:48]} Rbb5 {[%emt 1:07:24][%mdl 8192]} 28. bxc5 $18 Rxc5 {[%emt 0:00:00]} 29. Ra8+ {[%emt 0:03:55]} Kh7 {[%emt 0:00:00]} 30. Rf8 {[%emt 0:01:41]} Rc2 {[%emt 0:01:30]} 31. Rd4 $2 Rc1+ {[%emt 0:00:00]} (31... exd4 $11 32. Rxf7 d3) 32. Kh2 $16 {[%emt 0:00:35] Hoping for Rd7.} exd4 {[%emt 0:00:00]} 33. Rxf7 {[%emt 0:00:06] KR-KR} c5 {[%emt 0:00:00]} 34. b3 $1 {[%emt 0:06:32]} d3 {[%emt 0:00:00]} ({Black should play} 34... Kg8 35. Rf5 g6) 35. Rd7 {[%emt 0:00:13]} Rc3 {[%emt 0:00:00]} 36. Rd5 $1 {[%emt 0:00:06] White is more active.} Kg6 {[%emt 0:00:00]} 37. f3 {[%emt 0:01:35]} Kf6 {[%emt 0:00:00]} 38. h4 {[%emt 0:02:50]} d2 $2 {[%emt 0:01:00]} (38... g6 $16 39. Kg3 Ke6) 39. Rxd2 $18 {[%emt 0:00:21]} Rxb3 {[%emt 0:00:03]} 40. Kg3 {[%emt 0:07:21]} c4 {[%emt 0:01:42]} (40... Ke6 $142 41. Kf4 g6) 41. Kf4 {[%emt 0:07:47]} g5+ {[%emt 0:02:45]} 42. hxg5+ {[%emt 0:00:15]} hxg5+ {[%emt 0:00:00]} 43. Kg4 $2 {[%emt 0:00:20]} ({Only move:} 43. Kg3 $1 $18) 43... Rd3 {[%emt 0:00:00] Inhibits Rd6+.} 44. Ra2 {[%emt 0:03:17] And now Ra5 would win.} Rd6 {[%emt 0:00:28]} 45. Ra5 {[%emt 0:03:17]} Rc6 $1 {[%emt 0:00:04]} 46. Rxg5 {[%emt 0:00:34]} c3 {[%emt 0:00:05]} 47. Rh5 {[%emt 0:00:05] White threatens Rh6+ and mate.} Kg7 {[%emt 0:00:18][%mdl 8192] Inhibits Rh6.} (47... Rc8 $11 48. Rh1 c2) 48. Rh1 {[%emt 0:00:22]} Rg6+ {[%emt 0:00:08]} 49. Kf5 {[%emt 0:01:24]} Rxg2 {[%emt 0:00:02]} (49... c2 $142 50. Ra1 Rxg2 51. Ra7+ Kf8) 50. Ra1 $1 {[%emt 0:00:14]} c2 $2 {[%emt 0:02:09] [#]} (50... Kf8 51. Ra8+ Ke7) 51. Ra7+ $1 {[%emt 0:00:09]} Kf8 {[%emt 0:00:03]} 52. Rc7 {[%emt 0:00:05]} Ke8 {[%emt 0:00:07]} 53. f4 {[%emt 0:01:12][%cal Bf3f4,Bf4f5][%mdl 32]} Kd8 {[%emt 0:00:10]} 54. Rc3 {[%emt 0:00:27] Threatens to win with Ke6.} Ke7 {[%emt 0:00:59] [#]} 55. Ke5 $1 {[%emt 0:00:55]} Re2 $2 {[%emt 0:00:16]} (55... Rd2 56. Rc7+ Kd8) 56. f5 {[%emt 0:03:24] Strongly threatening Kd4. White is clearly winning.} Rf2 {[%emt 0:00:02]} 57. Rc4 {[%emt 0:00:28]} (57. Kd4 $142 Kd6 58. Kd3) 57... Re2 {[%emt 0:01:31]} 58. Kd4 {[%emt 0:02:12]} Rh2 {[%emt 0:01:35]} 59. Kd3 {[%emt 0:00:16] Weighted Error Value: White=0.33/Black=0.21 (precise)} 1-0

[Event "Vienna Championship 2022"]
[Site "Vienna"]
[Date "2022.09.23"]
[Round "7.3"]
[White "Peyrer, Konstantin"]
[Black "Vitouch, Anatol"]
[Result "1-0"]
[ECO "E06"]
[WhiteElo "2402"]
[BlackElo "2252"]
[Annotator "TA"]
[PlyCount "111"]
[EventDate "2022.09.17"]
[EventType "tourn"]
[EventCountry "AUT"]
[SourceTitle "playchess.com"]
[Source "ChessBase"]
[SourceQuality "1"]
[TimeControl "5400+30"]

{[%evp 15,111,10,10,-13,7,6,8,9,22,19,26,10,25,15,14,16,9,7,3,0,17,13,23,25,27,33,35,42,34,35,51,7,14,13,93,47,56,32,44,33,27,14,20,18,81,39,145,43,112,71,71,47,70,58,53,42,152,152,152,152,152,152,152,152,294,287,272,280,280,272,262,98,98,98,98,2,12816,5257,12837,12837,12838,12838,12839,12839,12840,12841,12841,12841,12842,12841,12842,12842,12842,12842,12842,12842,12843,12843]} 1. d4 {[%emt 0:00:04]} d5 {[%emt 0:00:06]} 2. Nf3 {[%emt 0:00:08]} Nf6 {[%emt 0:00:14]} 3. c4 {[%emt 0:00:06]} e6 {[%emt 0:00:05]} 4. g3 {[%emt 0:00:05]} Be7 {[%emt 0:00:15]} 5. Bg2 {[%emt 0:00:09]} O-O {[%emt 0:00:07]} 6. O-O {[%emt 0:00:04]} c6 {[%emt 0:00:13]} 7. Qc2 {[%emt 0:00:52]} b6 {[%emt 0:00:15]} 8. Bf4 {[%emt 0:00:18]} Bb7 {[%emt 0:00:30]} 9. Nc3 {[%emt 0:03:27] 9.Nbd2 is the modern continuation. E06: Closed Catalan: Early deviations.} Nh5 {[%emt 0:07:00]} 10. Bd2 {[%emt 0:03:37]} Nf6 {[%emt 0:00:25]} 11. Rfd1 {[%emt 0:02:16] The position is equal.} Na6 {[%emt 0:00:59]} 12. a3 {[%emt 0:03:56]} Rc8 {[%emt 0:02:07] [#]} 13. Ne5 $146 {[%emt 0:07:31]} ({Predecessor:} 13. Bf4 dxc4 14. Ne5 Nd5 15. Nxc4 Nxf4 16. gxf4 Nc7 17. e3 Nd5 18. Rac1 Rc7 19. Ne5 Bd6 20. Ne4 {1-0 (38) Getz,A (2289)-Martirosov,V (2264) ICC INT 2010}) 13... Nd7 {[%emt 0:22:04]} 14. Nxd7 {[%emt 0:05:02]} Qxd7 {[%emt 0:00:07]} 15. Qa4 {[%emt 0:05:22] cxd5 is the strong threat.} Rfd8 {[%emt 0:04:13]} 16. Bf4 {[%emt 0:04:07]} g5 {[%emt 0:02:37]} 17. Be3 {[%emt 0:00:58]} f5 {[%emt 0:02:09]} 18. Rac1 {[%emt 0:01:30]} h6 {[%emt 0:03:05]} 19. Bd2 {[%emt 0:04:50]} Bf6 {[%emt 0:01:46]} 20. e3 {[%emt 0:02:30]} c5 {[%emt 0:12:57]} 21. Qxd7 {[%emt 0:04:45]} Rxd7 {[%emt 0:00:26]} 22. cxd5 {[%emt 0:02:17]} exd5 {[%emt 0:00:20]} 23. Bh3 {[%emt 0:02:19]} g4 {[%emt 0:00:53]} 24. Bf1 {[%emt 0:00:07] Hoping for Bd3.} c4 {[%emt 0:02:04] Against Bd3} (24... cxd4 $11 25. exd4 Bxd4) 25. Rb1 {[%emt 0:02:07]} (25. b3 $16) 25... Nc7 $14 {[%emt 0:05:19] Prevents Nb5.} 26. b3 {[%emt 0:00:30]} Ne8 {[%emt 0:00:56]} 27. bxc4 {[%emt 0:01:25]} dxc4 {[%emt 0:00:08]} 28. Rdc1 {[%emt 0:00:15]} Nd6 {[%emt 0:01:39]} 29. a4 {[%emt 0:00:56][%cal Ba3a4,Ba4a5][%mdl 32]} Rdc7 {[%emt 0:03:46]} (29... Bd8 $11) 30. Be1 {[%emt 0:02:20][%cal Oa4a5]} Be4 {[%emt 0:11:37]} (30... Bf3 $14) 31. Rb2 {[%emt 0:03:02]} ({White must play} 31. Nxe4 $16 Nxe4 32. Rb5) 31... Kf7 {[%emt 0:05:26]} (31... Bc6 $14) 32. a5 {[%emt 0:02:41]} b5 {[%emt 0:03:21]} 33. Nxb5 {[%emt 0:06:40]} Nxb5 {[%emt 0:00:05]} 34. Rxb5 {[%emt 0:00:07]} c3 {[%emt 0:00:10]} 35. Bg2 $1 {[%emt 0:00:09]} Ke6 {[%emt 0:02:57]} (35... a6 $14 36. Rb6 c2) 36. Bxe4 $16 {[%emt 0:00:17]} fxe4 {[%emt 0:00:06]} 37. Rc2 {[%emt 0:00:07]} a6 {[%emt 0:00:47]} 38. Rb6+ {[%emt 0:00:18]} Rc6 {[%emt 0:00:19]} 39. Rxc3 $1 {[%emt 0:02:55]} Kd5 {[%emt 0:00:59] [#]} (39... Kd7 $16 {was necessary.} 40. Rcxc6 Rxc6 41. Rb7+ Rc7) 40. Rxa6 $3 $18 {[%emt 0:00:53][%mdl 512]} Rxc3 {[%emt 0:02:38]} 41. Bxc3 {[%emt 0:00:10][%mdl 4096] Endgame KRB-KRB} ({Don't go for} 41. Rxf6 $2 Rc1 42. Kf1 Ra1 43. Rf5+ (43. Rxh6 $2 Rcc1 $19) 43... Kd6 44. Rf6+ Kd7 45. Rf7+ (45. Rxh6 $2 Rcc1 $19) 45... Kd6 46. Rf6+ Kd7 47. Rf7+ (47. Rxh6 $2 Rcc1 $19) 47... Ke6 $19) 41... Be7 {[%emt 0:00:44]} 42. Bb2 {[%emt 0:00:11]} ({But not} 42. Rxh6 $6 Rxc3 43. Rh5+ Kd6 $18) 42... Rb8 {[%emt 0:00:36] [#]} 43. Rb6 {[%emt 0:01:17]} (43. Rxh6 $1 $18 {is more deadly.} Rxb2 44. Rh5+ Kc4 45. Re5) 43... Rxb6 $16 {[%emt 0:00:06]} 44. axb6 {[%emt 0:00:07] Threatens to win with b7. KB-KB} Kc6 {[%emt 0:00:34]} 45. d5+ {[%emt 0:18:02]} ({Better is} 45. b7 $16 Kxb7 46. h3) 45... Kxd5 $2 {[%emt 0:00:12][%mdl 8192] This move loses the game for Black.} (45... Kxb6 $11 46. h3 h5) 46. Bg7 $18 {[%emt 0:00:25] White is clearly winning.} h5 {[%emt 0:02:32]} 47. b7 {[%emt 0:00:10]} Bd6 {[%emt 0:00:11] [#]} 48. Bh6 $1 {[%emt 0:00:04]} Kc6 {[%emt 0:00:15] [#]} 49. Bf4 $1 {[%emt 0:00:05]} Kxb7 {[%emt 0:02:36]} 50. Bxd6 {[%emt 0:00:07] KB-K3P} Kc6 {[%emt 0:00:03]} 51. Bf4 {[%emt 0:00:09]} Kd5 {[%emt 0:00:04]} 52. Kf1 {[%emt 0:00:28]} Kc4 {[%emt 0:00:04]} 53. Ke2 {[%emt 0:00:07]} Kc3 {[%emt 0:00:10]} 54. Be5+ {[%emt 0:00:06]} Kc2 {[%emt 0:00:03]} 55. Bd4 {[%emt 0:00:06]} Kc1 {[%emt 0:00:05]} 56. f4 {[%emt 0:00:05] Weighted Error Value: White=0.21 (precise) /Black=0.26 (precise)} 1-0

[Event "Vienna Championship 2022"]
[Site "Vienna"]
[Date "2022.09.23"]
[Round "7.4"]
[White "Leisch, Lukas"]
[Black "Baumegger, Siegfried"]
[Result "1/2-1/2"]
[ECO "B31"]
[WhiteElo "2409"]
[BlackElo "2447"]
[Annotator "TA"]
[PlyCount "38"]
[EventDate "2022.09.17"]
[EventType "tourn"]
[EventCountry "AUT"]
[SourceTitle "playchess.com"]
[Source "ChessBase"]
[SourceQuality "1"]
[TimeControl "5400+30"]

{[%evp 23,38,16,26,25,16,26,32,18,36,3,9,0,0,0,0,0,0]} 1. e4 {[%emt 0:00:16]} c5 {[%emt 0:00:29]} 2. Nf3 {[%emt 0:00:07]} Nc6 {[%emt 0:01:15]} 3. Bb5 {[%emt 0:00:25]} g6 {[%emt 0:01:39]} 4. O-O {[%emt 0:00:12]} Bg7 {[%emt 0:00:05]} 5. Re1 {[%emt 0:00:07]} Nf6 {[%emt 0:00:48][%cal Bg8f6,Bf6d5,Bd5c7,Bc7e6][%mdl 32]} 6. e5 {[%emt 0:00:43]} Nd5 {[%emt 0:00:06]} 7. Nc3 {[%emt 0:00:13]} Nc7 {[%emt 0:00:06]} 8. Bxc6 {[%emt 0:00:14]} dxc6 {[%emt 0:00:06]} 9. Ne4 {[%emt 0:00:32]} Ne6 {[%emt 0:00:24]} 10. d3 {[%emt 0:00:38]} O-O {[%emt 0:02:31]} 11. Be3 {[%emt 0:02:58]} b6 {[%emt 0:00:23]} 12. Qd2 {[%emt 0:00:44]} f5 {[%emt 0:02:42]} 13. exf6 $1 {[%emt 0:02:18] B31: Sicilian: 2...Nc6 3 Bb5 g6.} exf6 {[%emt 0:00:06]} 14. Bh6 {[%emt 0:06:17]} a5 {[%emt 0:01:21]} 15. Bxg7 {[%emt 0:13:20] White is slightly better.} Kxg7 {[%emt 0:00:04]} 16. a4 {[%emt 0:00:41]} Ra7 {[%emt 0:03:39] [#] The position is equal.} 17. Re3 $146 {[%emt 0:05:26]} ({Predecessor:} 17. Qc3 Nf4 18. d4 Nd5 19. Qb3 f5 20. Ned2 cxd4 21. Nxd4 Qf6 22. N2f3 Nb4 23. Ne6+ Bxe6 24. Rxe6 {1-0 (30) Kveinys,A (2530)-Ramesh,R (2475) Bled 2002}) 17... Re7 {[%emt 0:05:53]} 18. Rae1 {[%emt 0:01:06]} Rfe8 {[%emt 0:05:32]} 19. Ng3 {[%emt 0:13:39]} ({Don't blunder} 19. Nxf6 $2 Kxf6 20. Re5 Kf7 $19) 19... Nd4 {[%emt 0:18:25] An even fight not without its subleties.  Weighted Error Value: White=0.09 (flawless) /Black=0.02 (flawless)} 1/2-1/2

[Event "Vienna Championship 2022"]
[Site "Vienna"]
[Date "2022.09.23"]
[Round "7.5"]
[White "Kruckenhauser, Arthur"]
[Black "Halvax, Georg"]
[Result "1/2-1/2"]
[ECO "C54"]
[WhiteElo "2289"]
[BlackElo "2423"]
[Annotator "TA"]
[PlyCount "60"]
[EventDate "2022.09.17"]
[EventType "tourn"]
[EventCountry "AUT"]
[SourceTitle "playchess.com"]
[Source "ChessBase"]
[SourceQuality "1"]
[TimeControl "5400+30"]

{[%evp 13,60,53,53,25,27,24,20,18,18,25,23,8,129,139,160,0,0,-1,54,59,59,64,51,30,25,35,35,15,0,-149,-31,-14,0,-42,-12,-27,0,-6,-4,-4,-4,-4,8,0,0,0,0,0,0]} 1. e4 {[%emt 0:05:32]} e5 {[%emt 0:00:18]} 2. Nf3 {[%emt 0:00:10]} Nc6 {[%emt 0:00:12]} 3. Bc4 {[%emt 0:00:06]} Bc5 {[%emt 0:00:12]} 4. c3 {[%emt 0:00:03]} Nf6 {[%emt 0:00:14]} 5. d3 {[%emt 0:00:04]} O-O {[%emt 0:00:15]} 6. O-O {[%emt 0:00:04]} d5 {[%emt 0:00:12]} 7. exd5 {[%emt 0:00:03]} Nxd5 {[%emt 0:00:11]} 8. a4 {[%emt 0:00:07] C54: Giuoco Piano: 4 c3 Nf6, main lines with 5 d4 and 5 d3.} a5 {[%emt 0:00:46]} 9. Nbd2 {[%emt 0:00:07]} Nb6 {[%emt 0:00:30]} 10. Bb5 {[%emt 0:00:06]} Bg4 {[%emt 0:00:31]} 11. Ne4 {[%emt 0:04:39]} Bd6 {[%emt 0:02:11]} 12. Re1 {[%emt 0:04:08]} f5 {[%emt 0:09:08]} (12... Na7 $11) 13. Qb3+ $16 {[%emt 0:14:40]} Kh8 {[%emt 0:00:59] [#]} 14. Bxc6 $146 {[%emt 0:04:28] [#]} ({Only move:} 14. Nxd6 $16 cxd6 15. Ng5) ({Predecessor:} 14. Nxd6 cxd6 15. Ng5 Qc7 16. Ne6 Qf7 17. Ra3 Rfc8 18. Be3 Nd7 19. Bc4 Qe7 20. f3 {½-½ (40) Navara,D (2693)-Niemann,H (2637) Malmo 2022}) 14... bxc6 $11 {[%emt 0:01:07]} 15. Bg5 {[%emt 0:01:23]} Qd7 {[%emt 0:22:56]} ({Black should try} 15... Qb8 $1 $11 16. Nxd6 cxd6) 16. Nxd6 $14 {[%emt 0:02:09]} Bxf3 {[%emt 0:00:13]} 17. Nc4 {[%emt 0:02:25]} ({Weaker is} 17. gxf3 Qxd6 18. Bc1 Nd7 $17) 17... Nxc4 {[%emt 0:00:41]} 18. gxf3 {[%emt 0:07:51]} Nb6 {[%emt 0:09:30]} (18... Qxd3 $2 19. Rad1 Qxf3 20. Qxc4 $18) 19. Rxe5 {[%emt 0:02:40]} Qxd3 {[%emt 0:05:04]} 20. Kg2 {[%emt 0:05:24]} (20. Re3 $5 {[%cal Re3d3]} Qa6 21. Rae1 $14) 20... h6 {[%emt 0:12:37]} 21. Be3 {[%emt 0:10:46] [#]} (21. Be7 $1 $11 Nc4 22. Rd1) 21... Rf6 {[%emt 0:07:50]} (21... Nc4 $1 $17 {[%cal Rc4e5]} 22. Re7 Qd6 23. Qxc4 Qxe7 24. Qxc6 Rab8) 22. Qd1 $1 $15 {[%emt 0:07:22]} Qc4 {[%emt 0:05:52] And now ...Rg6+ would win.} 23. Bxb6 {[%emt 0:05:55]} cxb6 {[%emt 0:00:40]} 24. Qe2 {[%emt 0:00:43]} Qh4 {[%emt 0:03:40]} 25. Kh1 {[%emt 0:01:34] The position is equal.} Rd8 {[%emt 0:02:08]} 26. Rg1 {[%emt 0:01:31]} Kh7 {[%emt 0:04:18]} (26... Qxa4 27. Re8+ Kh7 28. Rxd8 Qf4 29. Qe8 Qxf3+ 30. Rg2) 27. Re7 {[%emt 0:02:28]} Rg8 {[%emt 0:00:13]} 28. Qe5 {[%emt 0:04:14] Strongly threatening Rg3.} Qxf2 {[%emt 0:02:20]} 29. Qxf6 {[%emt 0:00:54][%cal Rg1g7] Active counter play!} Qxf3+ {[%emt 0:00:08]} 30. Rg2 {[%emt 0:00:03][%cal Re7g7]} Qf1+ {[%emt 0:00:43] Weighted Error Value: White=0.21 (precise) /Black=0.26 (precise)} 1/2-1/2